Cogmind - Beta 14 --- EXPLORER MODE // 2024.10.05 @ 15:40:56 Player: Cwaftwer Result: Self-destructed Performance ------------- Evolutions (5) 2500 Regions Visited (8) 1600 Robots Destroyed (95) 475 Value Destroyed (2714) 2714 Prototype IDs (40) 800 Alien Tech Used (0) 0 Bonus (857) 857 TOTAL SCORE: 8946 Bonus ------- High Alert Combat Kills 216 Follower Combat Kills 141 Entered DSFs 500 Cogmind --------- Core Integrity 977/1000 Matter 207/300 Energy 496/500 System Corruption 0% Temperature Cool (8) Movement Flying (26) Location -5/Factory Parts ------- > --- POWER (2) -------- F-cell Engine > --- PROPULSION (4) --- Surge Thruster Cooled VTOL Module Cooled VTOL Module Cooled VTOL Module > --- UTILITY (10) ----- Weight Redist. System Improved Signal Interpreter Transport Network Coupler Hacking Suite System Shield Improved System Shield > --- WEAPON (2) ------- Mini Assault Cannon Antimatter Cannon > --- INVENTORY (5) ---- Improved Deuterium Engine Surge Thruster Antimatter Cannon Heavy Rocket Launcher Heavy Flail Peak State ------------ > --- POWER ------------ F-cell Engine > --- PROPULSION ------- Surge Thruster Cooled VTOL Module Cooled VTOL Module Cooled VTOL Module > --- UTILITY ---------- Improved Matter Compressor Improved Signal Interpreter Transport Network Coupler Hacking Suite Hacking Suite System Shield System Shield Improved System Shield > --- WEAPON ----------- Flak Gun Mini Assault Cannon > --- INVENTORY -------- Improved Deuterium Engine Surge Thruster Heavy Rocket Launcher Datajack Heavy Flail [Rating: 62] Favorites ----------- Power Light Ion Engine Engine Light Ion Engine Power Core Nuclear Core Propulsion Cooled VTOL Module Flight Unit Cooled VTOL Module Utility Hacking Suite Device Weight Redist. System Storage Improved Matter Compressor Processor Improved Signal Interpreter Hackware Hacking Suite Weapon Flak Gun Energy Gun Particle Gun Ballistic Gun Flak Gun Ballistic Cannon Mini Assault Cannon Build | -11 -10 -9 -8 -7 -7 -6 -6 -5 ------- Run | Yrd Mat Mat Mat Fac DSF Fac Ext Fac Slots Evolved 11 | . 1 2 2 2 . 2 . 2 Power 1 | . . . . . . 1 . . Propulsion 2 | . . 1 . 1 . . . . Utility 8 | . 1 1 2 1 . 1 . 2 Weapon . | . . . . . . . . . Parts Attached 71 | 2 11 12 21 5 6 9 5 . Power 14 | . 4 1 3 . 2 4 . . Engine 11 | . 3 1 1 . 2 4 . . Core 3 | . 1 . 2 . . . . . Reactor . | . . . . . . . . . Propulsion 20 | . 3 5 8 1 1 2 . . Treads . | . . . . . . . . . Leg . | . . . . . . . . . Wheel . | . . . . . . . . . Hover . | . . . . . . . . . Flight 20 | . 3 5 8 1 1 2 . . Utility 21 | 1 2 3 7 2 . 2 4 . Device 10 | . 1 1 4 2 . 1 1 . Storage 1 | . . . . . . . 1 . Processor 5 | 1 1 1 2 . . . . . Hackware 5 | . . 1 1 . . 1 2 . Protection . | . . . . . . . . . Artifact . | . . . . . . . . . Weapon 16 | 1 2 3 3 2 3 1 1 . Energy Gun 1 | . . . 1 . . . . . Energy Cannon . | . . . . . . . . . Ballistic Gun 10 | 1 2 2 2 . 3 . . . Ballistic Cannon 5 | . . 1 . 2 . 1 1 . Launcher . | . . . . . . . . . Special Weapon . | . . . . . . . . . Impact Weapon . | . . . . . . . . . Slashing Weapon . | . . . . . . . . . Piercing Weapon . | . . . . . . . . . Special Melee Weapon . | . . . . . . . . . Unidentified Prototypes 5 | . . . 1 1 . 1 2 . Parts Lost 10 | . 1 . 4 . . 1 3 1 Power 2 | . . . 1 . . 1 . . Propulsion 2 | . 1 . 1 . . . . . Utility 4 | . . . . . . . 3 1 Weapon 2 | . . . 2 . . . . . Highest Loss Streak 3 | . 1 . 3 . . 1 2 1 To Critical Strikes . | . . . . . . . . . Average Slot Usage (%) 90 | . 78 96 92 95 94 94 89 73 Engine 7 | . 5 10 4 7 5 9 6 5 Flight 25 | . 20 29 25 28 28 23 25 22 Device 12 | . 6 13 10 19 21 17 8 5 Processor 17 | . 22 20 21 14 14 12 12 11 Hackware 11 | . . 3 10 14 14 17 24 18 Ballistic Gun 11 | . 23 12 12 4 2 10 3 . Ballistic Cannon 4 | . . 7 2 7 7 1 8 11 Peak Build Rating 62 | 2 10 21 41 51 51 60 62 57 Average Rating 33 | 1 6 16 31 48 46 52 55 55 On Entrance 31 | . 2 8 21 41 51 48 56 57 Naked Turns . | . . . . . . . . . Heaviest Build 24 | 1 7 13 15 20 20 23 24 24 Greatest Support 32 | 3 8 14 21 26 32 24 31 24 Greatest Overweight (x) 1 | . . . 1 . . . 1 . Average Overweight (x) . | . . . . . . . . . Largest Inventory Capacity 5 | 5 5 5 5 5 5 5 5 5 Average Capacity 5 | 5 5 5 5 5 5 5 5 5 Most Carried 5 | 2 5 5 5 5 5 5 5 5 Average Carried 4 | . 3 4 4 4 4 4 4 5 Final Capacity 5 | 5 5 5 5 5 5 5 5 5 Final Carried 5 | . 4 5 5 4 5 5 5 5 Class Distribution -------------------- 39% | Hacker-Scout 27% | Hacker-Sprinter 17% | Hacker-Mutant 10% | Wizard-Sprinter 6% | Hacker-Skirmisher Dominant Class ---------------- Hacker-Mutant | -10/Materials Hacker-Sprinter | -9/Materials Hacker-Scout | -8/Materials Hacker-Scout | -7/Factory Hacker-Scout | -7/DSF Hacker-Scout | -6/Factory Wizard-Sprinter | -6/Extension Hacker-Sprinter | -5/Factory Resources | -11 -10 -9 -8 -7 -7 -6 -6 -5 ----------- Run | Yrd Mat Mat Mat Fac DSF Fac Ext Fac Matter Collected 2512 | 220 210 527 705 61 38 387 330 34 Remotely . | . . . . . . . . . Salvage Created 3185 | . 453 1038 997 . 20 406 148 123 Parts 211 | . 35 83 62 . 7 16 5 3 Haulers Intercepted 14 | . 2 5 4 . . 2 1 . Recyclers Shooed . | . . . . . . . . . Parts Field Recycled . | . . . . . . . . . Retrieved Matter . | . . . . . . . . . Parts Self-Destructed . | . . . . . . . . . Prevented . | . . . . . . . . . Kills | -11 -10 -9 -8 -7 -7 -6 -6 -5 ------- Run | Yrd Mat Mat Mat Fac DSF Fac Ext Fac Combat Hostiles Destroyed 60 | . 6 22 19 . 3 1 5 4 Guns 38 | . 6 13 16 . 1 1 1 . Cannons 22 | . . 9 3 . 2 . 4 4 Classes Destroyed 14 | . 5 3 2 . 1 2 1 . Worker 1 | . . . . . . 1 . . Builder 1 | . . . . . . 1 . . Hauler 14 | . 2 5 4 . . 2 1 . Recycler 2 | . 1 . . . . 1 . . Operator 4 | . . 2 . . . 1 . 1 Watcher 13 | . 3 5 3 . . 2 . . Swarmer 13 | . 2 8 3 . . . . . Cutter 3 | . . . . . 3 . . . Grunt 23 | . 4 6 8 . . . 3 2 Brawler 2 | . . 1 1 . . . . . Duelist 1 | . . . 1 . . . . . Sentry 13 | . . 7 5 . . 1 . . Hunter 2 | . . . 1 . . . 1 . Programmer 2 | . . . . . . . 1 1 Guerrilla 1 | . . . . . . . . 1 Best Kill Streak 21 | . 4 21 9 . 2 3 2 5 Combat Bots Only 7 | . 2 7 6 . 2 1 2 4 Max Kills in Single Turn 1 | . 1 1 1 . 1 1 1 1 Gunslinging . | . . . . . . . . . Exploded . | . . . . . . . . . Melee . | . . . . . . . . . Uniques/NPCs Destroyed . | . . . . . . . . . Combat | -11 -10 -9 -8 -7 -7 -6 -6 -5 -------- Run | Yrd Mat Mat Mat Fac DSF Fac Ext Fac Hostile Shots Fired 361 | . 25 80 118 . 64 9 46 19 Missed 143 | . 10 30 44 . 33 4 17 5 Damage Taken 2007 | . 117 379 616 . 263 120 305 207 Core 533 | . 45 114 189 . 63 33 66 23 Absorbed by Shields 18 | . . . . . 18 . . . Ignored by Resistances 1259 | . 71 245 388 . 178 71 183 123 Regen/Repaired (Parts) 134 | . . 13 . . . 121 . . Core Remaining (%) 82 | 100 82 71 65 . 91 . 88 . Volleys Fired 265 | . 37 61 91 . 12 17 36 11 Largest 2 | . 2 2 2 . 2 2 2 2 Hottest 104 | . 40 62 104 . 56 76 88 88 Shots Fired 485 | . 69 122 169 . 13 34 56 22 Gun 329 | . 69 81 135 . 6 28 10 . Cannon 156 | . . 41 34 . 7 6 46 22 Launcher . | . . . . . . . . . Special . | . . . . . . . . . Kinetic 475 | . 69 122 159 . 13 34 56 22 Thermal 10 | . . . 10 . . . . . Explosive . | . . . . . . . . . Electromagnetic . | . . . . . . . . . Robot Hit Streak 39 | . 35 26 39 . 6 17 15 22 Robot Miss Streak 4 | . 2 1 3 . 3 4 4 . Penetration Max . | . . . . . . . . . Secondary Targets 4 | . 3 . 1 . . . . . Max Gunslinging Chain 1 | . 1 . 1 . . . . . Shots Hit Robots 403 | . 56 95 143 . 11 32 45 21 Core Hits 205 | . 26 46 50 . 6 47 25 5 Critical Kills . | . . . . . . . . . Critical Parts Destroyed . | . . . . . . . . . Critical Strikes 6 | . . 2 2 . . . . 2 Burn 1 | . . . 1 . . . . . Blast 5 | . . 2 1 . . . . 2 Melee Attacks . | . . . . . . . . . Impact . | . . . . . . . . . Slashing . | . . . . . . . . . Piercing . | . . . . . . . . . Sneak Attacks . | . . . . . . . . . Combat Hostiles . | . . . . . . . . . Follow-up Attacks . | . . . . . . . . . Damage Inflicted 7532 | . 510 1553 2419 . 237 799 1304 710 Guns 4074 | . 510 862 1815 . 76 627 184 . Cannons 3458 | . . 691 604 . 161 172 1120 710 Explosions . | . . . . . . . . . Melee . | . . . . . . . . . Ramming . | . . . . . . . . . Kinetic 7392 | . 510 1553 2279 . 237 799 1304 710 Thermal 140 | . . . 140 . . . . . Explosive . | . . . . . . . . . Electromagnetic . | . . . . . . . . . Impact . | . . . . . . . . . Slashing . | . . . . . . . . . Piercing . | . . . . . . . . . Highest Corruption . | . . . . . . . . . Average Corruption . | . . . . . . . . . Corruption Purged . | . . . . . . . . . Corruption Blocked . | . . . . . . . . . Overload Shots . | . . . . . . . . . Overflow Damage 212 | . . 4 8 . . 2 99 99 Projectiles 210 | . . 4 8 . . . 99 99 Explosions 2 | . . . . . . 2 . . Melee . | . . . . . . . . . Knockbacks 28 | . . 5 5 . 4 1 4 9 Impact . | . . . . . . . . . Kinetic 28 | . . 5 5 . 4 1 4 9 Secondary . | . . . . . . . . . Self-Inflicted Damage 99 | . . . . . . 99 . . Shots 2 | . . . . . . 2 . . Rammed . | . . . . . . . . . Targets Rammed . | . . . . . . . . . Kicked . | . . . . . . . . . Crushed . | . . . . . . . . . Highest Temperature 309 | . 19 90 309 . 26 6 160 49 Average Temperature 34 | . 5 22 49 . 18 4 36 26 Received Heat Transfer 1047 | . 93 261 450 . 26 12 99 106 Effects 2 | . . . 2 . . . . . Interference 2 | . . . 2 . . . . . Siege Activations . | . . . . . . . . . Robots Corrupted . | . . . . . . . . . Combat Hostiles . | . . . . . . . . . Parts Fried . | . . . . . . . . . Impact Corruptions . | . . . . . . . . . Robots Melted . | . . . . . . . . . Combat Hostiles . | . . . . . . . . . Parts Melted 3 | . . . 3 . . . . . Heat Transferred 407 | . . . 407 . . . . . Parts Sabotaged . | . . . . . . . . . Parts Stolen . | . . . . . . . . . Parts Stripped . | . . . . . . . . . Power Chain Reactions . | . . . . . . . . . Alert | -11 -10 -9 -8 -7 -7 -6 -6 -5 ------- Run | Yrd Mat Mat Mat Fac DSF Fac Ext Fac Peak Influence 735 | . 261 735 638 199 207 311 358 267 Initial 188 | . . 78 188 179 107 80 111 124 Average 313 | . 155 487 453 179 141 257 244 208 Maximum Alert Level 3 | . 1 3 2 . 1 1 1 1 Low Security (%) 28 | 100 49 10 . 100 98 15 19 29 Level 1 43 | . 50 20 30 . 1 84 80 70 Level 2 26 | . . 61 68 . . . . . Level 3 1 | . . 7 . . . . . . Level 4 . | . . . . . . . . . Level 5 . | . . . . . . . . . High Security . | . . . . . . . . . Max Security . | . . . . . . . . . Squads Dispatched 13 | . . 2 1 1 2 3 2 2 Investigation 2 | . . . . 1 . . 1 . Extermination . | . . . . . . . . . Reinforcement 10 | . . 2 1 . 2 2 1 2 Assault . | . . . . . . . . . Garrison 1 | . . . . . . 1 . . Intercept . | . . . . . . . . . Searches Triggered . | . . . . . . . . . Construction Impeded 1 | . . . . . . . . 1 Haulers Reinforced . | . . . . . . . . . Active Scanning Responses . | . . . . . . . . . Cargo Convoy Interrupts . | . . . . . . . . . Stealth | -11 -10 -9 -8 -7 -7 -6 -6 -5 --------- Run | Yrd Mat Mat Mat Fac DSF Fac Ext Fac Distress Signals 8 | . 2 2 2 . . 1 . 1 Communications Jammed . | . . . . . . . . . Distress Signals . | . . . . . . . . . Times Spotted 108 | . 13 35 27 . 9 6 11 7 Peak Tracking Total 7 | . 4 7 5 1 5 3 3 4 Tactical Retreats 6 | . 1 2 . . 1 . 2 . Traps | -11 -10 -9 -8 -7 -7 -6 -6 -5 ------- Run | Yrd Mat Mat Mat Fac DSF Fac Ext Fac Traps Triggered 6 | . . . . 2 3 1 . . Indirectly . | . . . . . . . . . Trap Hack Attempts . | . . . . . . . . . Triggered . | . . . . . . . . . Disarmed . | . . . . . . . . . Reprogrammed . | . . . . . . . . . Reused . | . . . . . . . . . Traps Extracted . | . . . . . . . . . Installed . | . . . . . . . . . Triggered . | . . . . . . . . . Machines | -11 -10 -9 -8 -7 -7 -6 -6 -5 ---------- Run | Yrd Mat Mat Mat Fac DSF Fac Ext Fac Machines Disabled 9 | . . . . . . 3 2 4 Max in Single Turn 3 | . . . . . . 3 1 . Garrison Access 1 | . . . 1 . . . . . Energy Cycler 3 | . . . . . . . 3 . Machines Repaired . | . . . . . . . . . Machines Dismantled . | . . . . . . . . . Machines Sabotaged . | . . . . . . . . . Overloaded Fab Kills . | . . . . . . . . . Hacking | -11 -10 -9 -8 -7 -7 -6 -6 -5 --------- Run | Yrd Mat Mat Mat Fac DSF Fac Ext Fac Machines Accessed 34 | . 7 7 6 3 . 3 7 1 Terminals 29 | . 7 6 4 2 . 2 7 1 Fabricators 1 | . . . . 1 . . . . Repair Stations 2 | . . 1 . . . 1 . . Recycling Units . | . . . . . . . . . Scanalyzers 1 | . . . 1 . . . . . Garrison Access 1 | . . . 1 . . . . . Total Hacks 116 | . 24 28 26 4 . 14 15 5 Successful 79 | . 13 19 19 4 . 10 11 3 Failed 37 | . 11 9 7 . . 4 4 2 Catastrophic 2 | . . 1 . . . 1 . . Database Lockouts . | . . . . . . . . . Manual 47 | . 13 15 9 1 . 3 5 1 Terminals 88 | . 24 24 14 2 . 4 15 5 Fabricators 2 | . . . . 2 . . . . Repair Stations 14 | . . 4 . . . 10 . . Recycling Units . | . . . . . . . . . Scanalyzers 9 | . . . 9 . . . . . Garrison Access 3 | . . . 3 . . . . . Terminal Hacks 54 | . 13 16 10 2 . 1 10 2 Part Schematic 3 | . 2 . . . . . . 1 Prototype ID Bank 31 | . 8 11 7 . . . 4 1 Open Door 4 | . . . . . . . 4 . Open DSF 2 | . . . . 2 . . . . Branch Access Points 2 | . . 1 1 . . . . . Recycling Unit Index 1 | . . 1 . . . . . . Locate Traps 3 | . 1 1 . . . . 1 . Assault Status 1 | . 1 . . . . . . . Zone Layout 7 | . 1 2 2 . . 1 1 . Fabricator Hacks 1 | . . . . 1 . . . . Network Status 1 | . . . . 1 . . . . Repair Station Hacks 11 | . . 3 . . . 8 . . Scan Component 6 | . . 2 . . . 4 . . Repair 5 | . . 1 . . . 4 . . Recycling Unit Hacks . | . . . . . . . . . Scanalyzer 8 | . . . 8 . . . . . Insert Component 4 | . . . 4 . . . . . Analyze 4 | . . . 4 . . . . . Garrison Access Hacks 1 | . . . 1 . . . . . Seal Access 1 | . . . 1 . . . . . Unauthorized Hacks 4 | . . . . 1 . 1 1 1 Terminals 3 | . . . . . . 1 1 1 Assimilate 3 | . . . . . . 1 1 1 Fabricators 1 | . . . . 1 . . . . Download 1 | . . . . 1 . . . . Repair Stations . | . . . . . . . . . Recycling Units . | . . . . . . . . . Scanalyzers . | . . . . . . . . . Garrison Access . | . . . . . . . . . Data Cores Recovered 1 | . . 1 . . . . . . Used 1 | . . 1 . . . . . . Hacking Detections 26 | . 6 6 5 1 . 3 4 1 Full Trace Events . | . . . . . . . . . Feedback Events . | . . . . . . . . . Feedback Blocked . | . . . . . . . . . Robot Schematics Acquired 1 | . . . . 1 . . . . Robots Built . | . . . . . . . . . Authchips . | . . . . . . . . . Time . | . . . . . . . . . Total Robot Build Rating . | . . . . . . . . . Part Schematics Acquired 7 | . 2 . 4 . . . . 1 Parts Built . | . . . . . . . . . Authchips . | . . . . . . . . . Time . | . . . . . . . . . Total Part Build Rating . | . . . . . . . . . Parts Repaired 5 | . . 1 . . . 4 . . Time 124 | . . 32 . . . 92 . . Parts Recycled . | . . . . . . . . . Recycled Matter . | . . . . . . . . . Retrieved Matter . | . . . . . . . . . Retrieved Components . | . . . . . . . . . Parts Scanalyzed 4 | . . . 4 . . . . . Part Schematics Acquired 4 | . . . 4 . . . . . Parts Damaged . | . . . . . . . . . Bothacking | -11 -10 -9 -8 -7 -7 -6 -6 -5 ------------ Run | Yrd Mat Mat Mat Fac DSF Fac Ext Fac Used RIF Installer . | . . . . . . . . . Robots Hacked . | . . . . . . . . . Non-combat . | . . . . . . . . . Combat . | . . . . . . . . . Robot Hacks Applied . | . . . . . . . . . Relay Couplers Released . | . . . . . . . . . Fabnet Peak Effective % . | . . . . . . . . . Robots Rewired . | . . . . . . . . . Allies Hacked 1 | . . . . . . . . 1 Hacks Repelled . | . . . . . . . . . Allies | -11 -10 -9 -8 -7 -7 -6 -6 -5 -------- Run | Yrd Mat Mat Mat Fac DSF Fac Ext Fac Total Allies 14 | . . . . . . 1 13 . Largest Group 12 | . . . . . . 1 12 9 Highest-Rated Group 346 | . . . . . . 26 346 282 Highest-Rated Ally 39 | . . . . . . 26 39 39 Total Orders . | . . . . . . . . . Ally Attacks 40 | . . . . . . . 16 24 Total Damage 1328 | . . . . . . . 349 979 Kills 7 | . . . . . . . 3 4 Allies Corrupted . | . . . . . . . . . Allies Melted 1 | . . . . . . . 1 . Intel | -11 -10 -9 -8 -7 -7 -6 -6 -5 ------- Run | Yrd Mat Mat Mat Fac DSF Fac Ext Fac Robot Analysis Total . | . . . . . . . . . Derelict Logs Recovered . | . . . . . . . . . Drone Launches . | . . . . . . . . . Drone Recoveries . | . . . . . . . . . Exploration | -11 -10 -9 -8 -7 -7 -6 -6 -5 ------------- Run | Yrd Mat Mat Mat Fac DSF Fac Ext Fac Turns Passed 2511 | 19 360 518 503 186 120 372 375 58 Spaces Moved 4113 | 30 604 808 649 382 134 591 824 91 Core 106 | 30 76 . . . . . . . Treads . | . . . . . . . . . Legs . | . . . . . . . . . Wheels . | . . . . . . . . . Hover . | . . . . . . . . . Flight 4007 | . 528 808 649 382 134 591 824 91 Fastest Speed 14 | 50 37 32 29 26 17 26 14 26 Average Speed 29 | 50 38 32 30 26 24 26 25 26 Slowest Speed 104 | 50 50 34 104 26 26 32 84 26 Overloaded Moves 37 | . . . . . 18 . 19 . Propulsion Burnouts . | . . . . . . . . . Robots Hopped 15 | . 1 4 2 2 1 3 2 . Cave-ins Triggered . | . . . . . . . . . Exploration Rate (%) 44 | 3 80 78 52 11 90 15 70 3 Regions Visited 8 Branch Regions 1 Pre-discovered Areas . | . . . . . . . . . Known Exits Taken 7 | 1 1 1 1 1 . 1 1 . Unknown Exits Taken . | . . . . . . . . . Scrap Searched . | . . . . . . . . . Spaces Dug . | . . . . . . . . . Terrain Destroyed 41 | . . . . . . 38 3 . Melee . | . . . . . . . . . Projectile 3 | . . . . . . . 3 . AOE 38 | . . . . . . 38 . . Terrain Rammed . | . . . . . . . . . Walls Destroyed . | . . . . . . . . . Machines Disabled . | . . . . . . . . . Actions | -11 -10 -9 -8 -7 -7 -6 -6 -5 --------- Run | Yrd Mat Mat Mat Fac DSF Fac Ext Fac Total 4918 | 33 670 941 805 466 205 768 927 103 Wait 331 | . 3 45 24 60 6 132 60 1 Move 4077 | 29 601 800 644 377 132 584 819 91 Hop 13 | . 1 3 2 2 . 3 2 . Pick Up 41 | 2 14 10 6 3 3 2 1 . Fast Attach 36 | . . 3 15 1 5 7 5 . Attach 22 | 2 9 3 4 3 1 . . . Detach . | . . . . . . . . . Swap 13 | . 2 6 2 1 . 2 . . Drop 44 | . 3 10 17 3 4 3 4 . Fire 265 | . 37 61 91 . 12 17 36 11 Melee . | . . . . . . . . . Ram . | . . . . . . . . . Kick . | . . . . . . . . . Crush . | . . . . . . . . . Escape Stasis 76 | . . . . 16 42 18 . . Rewire . | . . . . . . . . . Trap . | . . . . . . . . . Miscellaneous . | . . . . . . . . . Route ------- -11/Scrapyard -10/Materials (discovered 3 exits: *Mat x2 / *Min) -9/Materials (discovered 4 exits: *Mat x2 / *Min x2) -8/Materials (discovered 2 exits: *Fac x2) -7/Factory (discovered 2 exits: DSF / DSF) -7/DSF -6/Factory -6/Extension (discovered 2 exits: *Fac / *Cet) -5/Factory History --------- Turn | Location | Event 13 | -11/Scrapyard | Identified exit to Materials 13 | -11/Scrapyard | Discovered exit to Materials (range 15) 20 | -11/Scrapyard | Entered Materials 20 | -10/Materials | Evolved 1 slot: Utility x1 122 | -10/Materials | Identified exit to Mines 122 | -10/Materials | Discovered exit to Mines (range 13) 133 | -10/Materials | Identified exit to Materials 133 | -10/Materials | Discovered exit to Materials (range 4) 195 | -10/Materials | Discovered exit to Materials (range 11) 301 | -10/Materials | Build established: Hacker-Mutant 380 | -10/Materials | Entered another Materials area 380 | -9/Materials | Evolved 2 slots: Propulsion x1, Utility x1 476 | -9/Materials | Identified exit to Mines 476 | -9/Materials | Discovered exit to Mines (range 16) 621 | -9/Materials | Destroyed 7 combat bots 642 | -9/Materials | Repaired VTOL Module 651 | -9/Materials | Identified exit to Materials 651 | -9/Materials | Discovered exit to Materials (range 9) 888 | -9/Materials | Discovered exit to Materials (range 16) 898 | -9/Materials | Entered another Materials area 898 | -8/Materials | Evolved 2 slots: Utility x2 936 | -8/Materials | Build established: Hacker-Sprinter 1051 | -8/Materials | Lost 3 parts (1n2w) 1231 | -8/Materials | Identified exit to Factory 1231 | -8/Materials | Discovered exit to Factory (range 14) 1320 | -8/Materials | Build established: Hacker-Scout 1399 | -8/Materials | Discovered exit to Factory (range 7) 1401 | -8/Materials | Entered Factory 1401 | -7/Factory | Evolved 2 slots: Propulsion x1, Utility x1 1404 | -7/Factory | Identified exit to DSF 1575 | -7/Factory | Identified exit to DSF 1587 | -7/Factory | Entered DSF 1617 | -7/DSF | Additional patrols routed to DSF 1640 | -7/DSF | Identified exit to Factory 1640 | -7/DSF | Discovered exit to Factory (range 16) 1707 | -7/DSF | Entered Factory 1707 | -6/Factory | Evolved 2 slots: Power x1, Utility x1 1781 | -6/Factory | Garrison activated, responded to threat 1833 | -6/Factory | Repaired Weight Redist. System 1854 | -6/Factory | Repaired Surge Thruster 1877 | -6/Factory | Repaired Imp. Deuterium Engine 1914 | -6/Factory | Repaired Cld. VTOL Module 1919 | -6/Factory | Identified exit to Extension 1919 | -6/Factory | Discovered exit to Extension (range 13) 2079 | -6/Factory | Entered Extension 2079 | -6/Extension | Accompanied by 1 ally 2094 | -6/Extension | Rescued a captive Derelict 2095 | -6/Extension | Rescued a captive Derelict 2097 | -6/Extension | Rescued a captive Derelict 2105 | -6/Extension | Rescued a captive Derelict 2110 | -6/Extension | Rescued a captive Derelict 2133 | -6/Extension | Rescued a captive Derelict 2134 | -6/Extension | Rescued a captive Derelict 2168 | -6/Extension | Energy Cycler disabled 2168 | -6/Extension | Rescued a captive Derelict 2169 | -6/Extension | Rescued a captive Derelict 2169 | -6/Extension | Rescued a captive Derelict 2170 | -6/Extension | Rescued a captive Derelict 2170 | -6/Extension | Rescued a captive Derelict 2172 | -6/Extension | Rescued a captive Derelict 2172 | -6/Extension | Rescued a captive Derelict 2173 | -6/Extension | Rescued a captive Derelict 2174 | -6/Extension | Rescued a captive Derelict 2174 | -6/Extension | Rescued a captive Derelict 2175 | -6/Extension | Rescued a captive Derelict 2282 | -6/Extension | Identified exit to Factory 2282 | -6/Extension | Discovered exit to Factory (range 14) 2283 | -6/Extension | Spotted B-75 Beast 2287 | -6/Extension | Extracted ID and sensor layout for unrecognized location from A7's data core 2379 | -6/Extension | Identified exit to Cetus 2379 | -6/Extension | Discovered exit to Cetus (range 15) 2383 | -6/Extension | Disrupted transfer network 2454 | -6/Extension | Entered Factory 2454 | -5/Factory | Accompanied by 9 allies 2454 | -5/Factory | Evolved 2 slots: Utility x2 2512 | -5/Factory | Self-destructed Last Messages --------------- G-67 Veteran knocked back. G-67 Veteran destroyed. O-16 Technician knocked back. Destroyed Lgt. Ion Engine. O-16 Technician knocked back. Destroyed Datajack. O-16 Technician suffers critical hit (Blast). Destroyed Hover Unit. O-16 Technician destroyed. Acquired 23 matter. Acquired 11 matter. P-70 Sage knocked back. Destroyed Imp. Heat Sink. P-70 Sage destroyed. Penetrated by HV Slug. PJ-YHW(h) destroyed. Destroyed Welding Torch. U-05 Engineer knocked back. ALERT: Construction progress impeded, dispatching reinforcements to local area. Map ----- +----------------------------------------------------+ | ???????????"""???????????????????????????????????? | | ???????????"""???????????????????????????????????? | | ??????????? ???????????????????????????????????? | | ??????????? ???????????????????????????????????? | | ???????####+#############+??????????????????????? | | ???????# ??????????????????????? | | ??????# ?????????????????????? | | ??????# ?????????????????????? | | ?????# ?????????????????????? | | ?????# ?????????????????????? | | ????######+############???????????????????????? | | ????# #????????????????????????????? | | ????# #????????????????????????????? | | ##### #????????????????????????????? | | + #????????????????????????????? | | # #????????????????????????????? | | !]= !%== #????????????????????????????? | | !]! #????????????????????????????? | | !]] % #????????????????????????????? | | #????????????????????????????? | | !*%" #????????????????????????????? | | ! %=% #????????????????????????????? | | !]! #????????????????????????????? | | !! ""###????????????????????????????? | | !! " %#?##############???????????????? | | ## ###%"#?# * @ ! #???????????????? | | #?####?# #??# #???????????????? | | #??????#%#??# """"""""" #???????????????? | | ! #???#### #### #???????????????? | | # #???# # """"""""" #???????????????? | | # ##### % % # #???????????????? | | # % # """"""""" #???????????????? | | # ! T + #???????????????? | | # ### % # """"""""" ????????????????? | | #+??##+###### % # ???????????????????? | | ????????????# # """"""""???????????????????? | | ????????????### ### ???????????????????? | | ??????????????# %#?######+###???????????????????? | | ??????????????# ?????????????????????????????? | | ??????????????# ????????????????????????????? | | ??????????????# ???????????????????????????? | | ??????????????## ######??????????????????????????? | | ???????????????# #???????????????????????????????? | | ???????????????# #???????????????????????????????? | | ???????????????# #???????????????????????????????? | | ???????????????# #???????????????????????????????? | | ???????????????? #???????????????????????????????? | | ????????????????##???????????????????????????????? | | ?????????????????????????????????????????????????? | | ?????????????????????????????????????????????????? | +----------------------------------------------------+ Best States ------------- Heat Dissipation 40 Energy Generation 21 Energy Capacity 500 Matter Stores 300 Matter Capacity 300 Sight Range 16 Robot Scan Range 15 Terrain Scan Density 10 ECM Strength 2 Additional Mass Support 6 Resistance: KI 35 Resistance: TH 35 Resistance: EX 35 Resistance: EM 35 Resistance: I 35 Resistance: S 35 Resistance: P 35 Evasion (%) 67 Targeting Accuracy 6 Offensive Hacking 40 Defensive Hacking 32 Item Schematics ----------------- Sensor Array | -10/Materials | Hacked Signal Interpreter | -10/Materials | Hacked Imp. VTOL Module | -8/Materials | Scanalyzed Imp. Assault Rifle | -8/Materials | Scanalyzed Hvy. Flail | -8/Materials | Scanalyzed Datajack | -8/Materials | Scanalyzed Antigrav Array | -5/Factory | Hacked Robot Schematics ------------------ G-47 Trooper | -7/Factory | Downloaded Fabricated ------------ Nothing Alien Tech Used ----------------- None Achievements -------------- None Challenges ------------ None Game ------ Seed ImprinterForceAutopenetrator Manual? 0 Play Time 00:56:19 Cumulative 120.6 hours Start 2024.10.03 @ 22:21:16 End 2024.10.05 @ 15:40:56 Sessions 2 Manual Loads 0 Difficulty Explorer Special Mode None Game No. 106 Rogue 77 Adventurer 1 Explorer 28 Win Type - Total 11 Types 9/0/0/2/0/0/0/0/0 Lore% 59 Gallery% 65 Achievement% 63 Wizard Run 0 Options --------- Layout 1 ASCII 0 Keyboard 0 Movement Mouse Keybinds 0 Fullscreen 1 Font 24/Smallcaps Map View 50x40 Zoom Use 0% Tactical HUD 0 Map Filters NONE Filters NONE Steam 1 RUN: b127daf9-3b27-4722-8fd4-3f923368db4a